[Event "23rd Pirc Memorial Juniors 202"]
[Site "Maribor"]
[Date "2020.08.15"]
[Round "7.5"]
[White "Kodric, Gasper"]
[Black "Heric, Meta"]
[Result "0-1"]
[ECO "A26"]
[WhiteElo "1624"]
[BlackElo "1287"]
[Annotator "NA"]
[PlyCount "134"]
[EventDate "2020.08.12"]
[EventType "tourn"]
[EventCountry "SLO"]
[SourceTitle "playchess.com"]
[Source "ChessBase"]
[SourceQuality "1"]
[TimeControl "3600+30"]

1. c4 {[%emt 0:00:00]} e5 {[%emt 0:00:00]} 2. g3 {[%emt 0:00:00]} Nc6 {[%emt 0:00:15]} 3. Bg2 {[%emt 0:00:00]} g6 {[%emt 0:00:08]} 4. Nc3 {[%emt 0:00:23]} Bg7 {[%emt 0:00:10]} 5. Nf3 {[%emt 0:00:39]} f5 {[%emt 0:00:50]} 6. d3 {[%emt 0:00:19]} d6 {[%emt 0:00:21]} 7. O-O {[%emt 0:00:30]} Nf6 {[%emt 0:00:20]} 8. e4 {[%emt 0:01:22]} fxe4 {[%emt 0:00:42]} 9. dxe4 {[%emt 0:00:39]} O-O {[%emt 0:00:40]} 10. h3 {[%emt 0:00:35]} h6 {[%emt 0:14:54]} 11. Be3 {[%emt 0:05:14]} Be6 {[%emt 0:02:16]} 12. b3 {[%emt 0:00:52]} Qd7 {[%emt 0:01:53]} 13. Kh2 {[%emt 0:00:17]} Nh5 {[%emt 0:12:24]} 14. Qd2 {[%emt 0:02:29]} Kh7 {[%emt 0:04:55]} 15. Rad1 {[%emt 0:00:32]} g5 {[%emt 0:04:06]} 16. Nd5 {[%emt 0:05:45]} g4 {[%emt 0:05:56]} 17. Ng1 {[%emt 0:04:44]} gxh3 {[%emt 0:03:26]} 18. Bxh3 {[%emt 0:01:08]} Bxh3 {[%emt 0:00:49]} 19. Nxh3 {[%emt 0:00:05]} Nf6 {[%emt 0:00:59]} 20. f3 {[%emt 0:03:39]} Rf7 {[%emt 0:04:16]} 21. Nf2 {[%emt 0:02:30]} Raf8 {[%emt 0:02:15]} 22. c5 {[%emt 0:08:27]} Nxd5 23. exd5 {[%emt 0:00:07]} Ne7 {[%emt 0:03:08]} 24. f4 {[%emt 0:02:44]} dxc5 {[%emt 0:02:04]} 25. Ne4 {[%emt 0:01:55]} b6 {[%emt 0:01:29]} 26. d6 {[%emt 0:01:36]} cxd6 {[%emt 0:01:13]} 27. Qc2 {[%emt 0:02:12]} Qf5 {[%emt 0:02:21]} 28. g4 {[%emt 0:00:08]} Qg6 {[%emt 0:00:30]} 29. Rxd6 {[%emt 0:00:14]} Bf6 {[%emt 0:00:07]} 30. fxe5 {[%emt 0:01:17]} Bxe5+ {[%emt 0:00:11]} 31. Bf4 {[%emt 0:09:27]} Bxd6 {[%emt 0:00:05]} 32. Bxd6 {[%emt 0:00:15]} Rxf1 {[%emt 0:00:10]} 33. Bxe7 {[%emt 0:00:17]} R1f2+ {[%emt 0:00:10]} 34. Qxf2 {[%emt 0:01:33]} Rxf2+ {[%emt 0:00:06]} 35. Nxf2 {[%emt 0:00:03]} Qc2 {[%emt 0:00:12]} 36. Kg3 {[%emt 0:01:08]} Qxa2 {[%emt 0:00:12]} 37. b4 {[%emt 0:00:56]} Qb3+ {[%emt 0:00:09]} 38. Kh4 {[%emt 0:00:30]} Qxb4 {[%emt 0:00:25]} 39. Kh5 {[%emt 0:00:32]} Qf4 {[%emt 0:00:34]} 40. Nh3 {[%emt 0:03:21]} Qf7+ {[%emt 0:00:15]} 41. Kh4 {[%emt 0:00:09]} Qxe7+ {[%emt 0:00:14]} 42. g5 {[%emt 0:00:09]} Qe1+ {[%emt 0:00:48]} 43. Kh5 {[%emt 0:00:29]} hxg5 {[%emt 0:00:30]} 44. Nxg5+ {[%emt 0:00:08]} Kg7 {[%emt 0:00:24]} 45. Kg4 {[%emt 0:00:50]} Qg1+ {[%emt 0:00:22]} 46. Kf4 {[%emt 0:00:06]} Qxg5+ {[%emt 0:00:22]} 47. Kxg5 {[%emt 0:00:09]} a5 {[%emt 0:00:20]} 48. Kf4 {[%emt 0:00:11]} a4 {[%emt 0:00:15]} 49. Ke4 {[%emt 0:00:05]} a3 {[%emt 0:00:14]} 50. Kd3 {[%emt 0:00:13]} a2 {[%emt 0:00:10]} 51. Kc4 {[%emt 0:00:05]} a1=Q {[%emt 0:00:21]} 52. Kb3 {[%emt 0:00:09]} c4+ {[%emt 0:00:22]} 53. Kc2 {[%emt 0:00:27]} Qa2+ {[%emt 0:00:13]} 54. Kc3 {[%emt 0:00:25]} Qh2 {[%emt 0:00:23]} 55. Kxc4 {[%emt 0:00:23]} Qd6 {[%emt 0:00:26]} 56. Kb5 {[%emt 0:00:09]} Qc5+ {[%emt 0:00:30]} 57. Ka4 {[%emt 0:00:10]} b5+ {[%emt 0:00:28]} 58. Kb3 {[%emt 0:00:13]} Qc4+ {[%emt 0:00:14]} 59. Kb2 {[%emt 0:00:13]} Kf6 {[%emt 0:00:36]} 60. Ka1 {[%emt 0:00:08]} Ke5 {[%emt 0:00:12]} 61. Kb2 {[%emt 0:00:14]} Ke4 {[%emt 0:00:22]} 62. Ka3 {[%emt 0:00:17]} b4+ {[%emt 0:00:20]} 63. Kb2 {[%emt 0:00:06]} Qc3+ {[%emt 0:00:24]} 64. Kb1 {[%emt 0:00:10]} Qd2 {[%emt 0:00:26]} 65. Ka1 {[%emt 0:00:06]} b3 {[%emt 0:00:10]} 66. Kb1 {[%emt 0:00:04]} Qc2+ {[%emt 0:00:14]} 67. Ka1 {[%emt 0:00:06]} Qa2# {[%emt 0:00:06]} 0-1

[Event "23rd Pirc Memorial Juniors 202"]
[Site "Maribor"]
[Date "2020.08.15"]
[Round "8.1"]
[White "Drevensek, Gasper"]
[Black "Heric, Meta"]
[Result "1-0"]
[ECO "B53"]
[WhiteElo "1624"]
[BlackElo "1287"]
[Annotator "NA"]
[PlyCount "59"]
[EventDate "2020.08.12"]
[EventType "tourn"]
[EventCountry "SLO"]
[SourceTitle "playchess.com"]
[Source "ChessBase"]
[SourceQuality "1"]
[TimeControl "3600+30"]

1. e4 {[%emt 0:00:00]} c5 {[%emt 0:00:00]} 2. Nf3 {[%emt 0:00:00]} d6 {[%emt 0:00:00]} 3. d4 {[%emt 0:00:00]} cxd4 {[%emt 0:00:00]} 4. Qxd4 {[%emt 0:00:00]} Nf6 {[%emt 0:00:00]} 5. Bb5+ {[%emt 0:00:23]} Bd7 {[%emt 0:00:06]} 6. Bxd7+ {[%emt 0:00:52]} Qxd7 {[%emt 0:01:09]} 7. c4 {[%emt 0:00:32]} Nc6 {[%emt 0:00:23]} 8. Qd3 {[%emt 0:01:34]} Nb4 {[%emt 0:01:34]} 9. Qe2 {[%emt 0:00:25]} Na6 {[%emt 0:02:30]} 10. Nc3 {[%emt 0:00:51]} Nc5 {[%emt 0:11:21]} 11. O-O {[%emt 0:02:22]} e5 {[%emt 0:04:07]} 12. Bg5 {[%emt 0:05:49]} Be7 {[%emt 0:00:41]} 13. Rfd1 {[%emt 0:00:54]} O-O {[%emt 0:02:39]} 14. Bxf6 {[%emt 0:07:50]} Bxf6 {[%emt 0:00:27]} 15. Rd2 {[%emt 0:01:02]} Rfd8 {[%emt 0:02:25]} 16. Rad1 {[%emt 0:01:28]} Qc6 {[%emt 0:01:39]} 17. Nd5 {[%emt 0:02:15]} Kh8 {[%emt 0:08:46]} 18. Qe3 {[%emt 0:03:23]} Nd7 {[%emt 0:06:08]} 19. Nxf6 {[%emt 0:00:43]} Nxf6 {[%emt 0:01:16]} 20. Nxe5 {[%emt 0:00:14]} Qe8 {[%emt 0:02:23]} 21. Qd4 {[%emt 0:06:25]} Kg8 {[%emt 0:10:42]} 22. f3 {[%emt 0:00:31]} b5 {[%emt 0:02:53]} 23. Nd3 {[%emt 0:01:03]} bxc4 {[%emt 0:00:42]} 24. Qxc4 {[%emt 0:00:50]} d5 {[%emt 0:01:31]} 25. exd5 {[%emt 0:02:54]} Nxd5 {[%emt 0:00:33]} 26. Qe4 {[%emt 0:03:32]} Qb5 {[%emt 0:03:35]} 27. Nf2 {[%emt 0:02:42]} Rac8 {[%emt 0:05:06]} 28. Rxd5 {[%emt 0:00:48]} Rxd5 {[%emt 0:00:07]} 29. Qxd5 {[%emt 0:00:09]} Qxd5 {[%emt 0:00:54]} 30. Rxd5 {[%emt 0:00:05]} 1-0

[Event "23rd Pirc Memorial Juniors 202"]
[Site "Maribor"]
[Date "2020.08.15"]
[Round "8.2"]
[White "Drevensek, Doroteja"]
[Black "Kodric, Gasper"]
[Result "0-1"]
[ECO "B12"]
[WhiteElo "1381"]
[BlackElo "1624"]
[Annotator "NA"]
[PlyCount "102"]
[EventDate "2020.08.12"]
[EventType "tourn"]
[EventCountry "SLO"]
[SourceTitle "playchess.com"]
[Source "ChessBase"]
[SourceQuality "1"]
[TimeControl "3600+30"]

1. e4 {[%emt 0:00:00]} c6 {[%emt 0:00:00]} 2. d4 {[%emt 0:00:00]} d5 {[%emt 0:00:00]} 3. e5 {[%emt 0:00:00]} c5 {[%emt 0:00:00]} 4. dxc5 {[%emt 0:00:40]} e6 {[%emt 0:00:00]} 5. a3 {[%emt 0:00:08]} Bxc5 {[%emt 0:00:18]} 6. Nf3 {[%emt 0:01:43]} Nd7 {[%emt 0:01:37]} 7. Bd3 {[%emt 0:05:43]} g6 {[%emt 0:02:21]} 8. b4 {[%emt 0:00:58]} Be7 {[%emt 0:00:13]} 9. O-O {[%emt 0:01:03]} a5 {[%emt 0:00:11]} 10. bxa5 {[%emt 0:13:57]} Qxa5 {[%emt 0:02:20]} 11. Bb2 {[%emt 0:02:00]} Nc5 {[%emt 0:04:45]} 12. Be2 {[%emt 0:04:12]} Bd7 {[%emt 0:03:56]} 13. c4 {[%emt 0:02:17]} dxc4 {[%emt 0:02:04]} 14. Bxc4 {[%emt 0:01:24]} Rd8 {[%emt 0:02:47]} 15. Qe2 {[%emt 0:04:15]} h5 {[%emt 0:06:33]} 16. Nc3 {[%emt 0:06:15]} Na4 {[%emt 0:01:20]} 17. Nxa4 {[%emt 0:02:01]} Bxa4 {[%emt 0:00:20]} 18. Rab1 {[%emt 0:04:04]} Nh6 {[%emt 0:02:45]} 19. Bd4 {[%emt 0:02:46]} b5 {[%emt 0:09:01]} 20. Bxb5+ {[%emt 0:01:41]} Bxb5 {[%emt 0:00:45]} 21. Rxb5 {[%emt 0:01:22]} Qa6 {[%emt 0:00:34]} 22. Rfb1 {[%emt 0:01:41]} O-O {[%emt 0:01:19]} 23. Qa2 {[%emt 0:04:56]} Nf5 {[%emt 0:01:10]} 24. Bb6 {[%emt 0:02:37]} Qxb5 {[%emt 0:00:34]} 25. Bxd8 {[%emt 0:00:17]} Rxd8 {[%emt 0:00:14]} 26. g4 {[%emt 0:02:26]} Qc6 {[%emt 0:02:46]} 27. gxf5 {[%emt 0:00:29]} Qxf3 {[%emt 0:00:18]} 28. fxe6 {[%emt 0:00:35]} Rd1+ {[%emt 0:01:07]} 29. Rxd1 {[%emt 0:00:21]} Qxd1+ {[%emt 0:00:05]} 30. Kg2 {[%emt 0:00:07]} Qg4+ {[%emt 0:00:15]} 31. Kf1 {[%emt 0:01:52]} Qxe6 {[%emt 0:00:16]} 32. Qb2 {[%emt 0:00:47]} Qh3+ {[%emt 0:00:44]} 33. Kg1 {[%emt 0:00:20]} Qxa3 {[%emt 0:00:10]} 34. Qb8+ {[%emt 0:00:54]} Kg7 {[%emt 0:00:40]} 35. Qc7 {[%emt 0:00:47]} Qc5 {[%emt 0:00:37]} 36. Qb8 {[%emt 0:00:49]} Bh4 {[%emt 0:04:21]} 37. Qb2 {[%emt 0:00:51]} Qxf2+ {[%emt 0:06:08]} 38. Qxf2 {[%emt 0:00:03]} Bxf2+ {[%emt 0:00:07]} 39. Kxf2 {[%emt 0:00:05]} Kh6 {[%emt 0:00:26]} 40. h4 {[%emt 0:02:30]} g5 {[%emt 0:00:07]} 41. Kg3 {[%emt 0:00:48]} gxh4+ {[%emt 0:02:02]} 42. Kxh4 {[%emt 0:00:07]} Kg6 {[%emt 0:00:06]} 43. Kh3 {[%emt 0:00:36]} Kf5 {[%emt 0:00:35]} 44. Kh4 {[%emt 0:00:08]} Kxe5 {[%emt 0:00:07]} 45. Kxh5 {[%emt 0:00:10]} Kf4 {[%emt 0:00:20]} 46. Kh4 {[%emt 0:00:20]} f5 {[%emt 0:00:08]} 47. Kh3 {[%emt 0:00:12]} Kf3 {[%emt 0:00:06]} 48. Kh2 {[%emt 0:00:18]} Kf2 {[%emt 0:00:12]} 49. Kh1 {[%emt 0:00:09]} f4 {[%emt 0:00:22]} 50. Kh2 {[%emt 0:00:22]} f3 {[%emt 0:00:35]} 51. Kh1 {[%emt 0:00:23]} Ke1 {[%emt 0:00:22]} 0-1

[Event "23rd Pirc Memorial Juniors 202"]
[Site "Maribor"]
[Date "2020.08.15"]
[Round "8.3"]
[White "Guid, Taja"]
[Black "Kozlovic, Jernej"]
[Result "1/2-1/2"]
[ECO "E11"]
[WhiteElo "1705"]
[BlackElo "1445"]
[Annotator "NA RC"]
[PlyCount "85"]
[EventDate "2020.08.12"]
[EventType "tourn"]
[EventCountry "SLO"]
[SourceTitle "playchess.com"]
[Source "ChessBase"]
[SourceQuality "1"]
[TimeControl "3600+30"]

1. d4 {[%emt 0:00:00]} Nf6 {[%emt 0:00:00]} 2. c4 {[%emt 0:00:00]} e6 {[%emt 0:00:00]} 3. g3 {[%emt 0:00:01]} Bb4+ {[%emt 0:00:00]} 4. Bd2 {[%emt 0:00:07]} Qe7 {[%emt 0:00:00]} 5. Bg2 {[%emt 0:00:50]} Nc6 {[%emt 0:00:09]} 6. Nf3 {[%emt 0:02:14]} Bxd2+ {[%emt 0:00:03]} 7. Nbxd2 {[%emt 0:00:12]} O-O {[%emt 0:00:35]} 8. O-O {[%emt 0:00:19]} d6 {[%emt 0:00:07]} 9. e4 {[%emt 0:10:51]} e5 {[%emt 0:00:03]} 10. d5 {[%emt 0:00:57]} Nb8 {[%emt 0:00:15]} 11. Re1 {[%emt 0:00:49]} a5 {[%emt 0:00:10]} 12. a3 {[%emt 0:02:38]} a4 {[%emt 0:00:25]} 13. b4 {[%emt 0:01:30]} axb3 {[%emt 0:00:31]} 14. Nxb3 {[%emt 0:00:15]} Na6 {[%emt 0:08:05]} 15. Qd3 {[%emt 0:02:32]} Nd7 {[%emt 0:03:05]} 16. Nfd2 {[%emt 0:01:48]} Nac5 {[%emt 0:00:33]} 17. Nxc5 {[%emt 0:00:54]} Nxc5 {[%emt 0:00:03]} 18. Qe3 {[%emt 0:00:34]} Ra4 {[%emt 0:06:28]} 19. Rec1 {[%emt 0:01:55]} Bd7 {[%emt 0:00:59]} 20. Nb3 {[%emt 0:00:40]} Nxb3 {[%emt 0:00:35]} 21. Qxb3 {[%emt 0:00:13]} b6 {[%emt 0:00:11]} 22. Bf3 {[%emt 0:09:59]} Rfa8 {[%emt 0:01:31]} 23. Bd1 {[%emt 0:01:15]} R4a5 {[%emt 0:00:34]} 24. Qc3 {[%emt 0:01:42]} Qe8 {[%emt 0:07:55]} 25. Rcb1 {[%emt 0:00:54]} Qc8 {[%emt 0:00:40]} 26. Rb2 {[%emt 0:01:52]} Qa6 {[%emt 0:02:37]} 27. Rba2 {[%emt 0:00:23]} Rc5 {[%emt 0:01:42]} 28. Be2 {[%emt 0:00:42]} Qb7 {[%emt 0:03:21]} 29. a4 {[%emt 0:02:24]} Rca5 {[%emt 0:01:47]} 30. Bd1 {[%emt 0:00:23]} R8a6 {[%emt 0:03:13]} 31. Bb3 {[%emt 0:01:27]} Qa8 {[%emt 0:02:21]} 32. Qc2 {[%emt 0:00:31]} Qe8 {[%emt 0:01:26]} 33. f3 {[%emt 0:03:08]} g6 {[%emt 0:01:51]} 34. Kg2 {[%emt 0:01:22]} Ra8 {[%emt 0:02:07]} 35. Kg1 {[%emt 0:00:18]} f5 {[%emt 0:00:47]} 36. Kg2 {[%emt 0:01:12]} Kh8 {[%emt 0:00:06]} 37. Kg1 {[%emt 0:00:24]} Qf7 {[%emt 0:03:06]} 38. Rf1 {[%emt 0:00:51]} Qe8 {[%emt 0:00:59]} 39. Rfa1 {[%emt 0:00:14]} R8a7 {[%emt 0:01:51]} 40. Kg2 {[%emt 0:00:33]} Qa8 {[%emt 0:00:22]} 41. Kg1 {[%emt 0:00:26]} h5 {[%emt 0:02:36]} 42. Qd2 {[%emt 0:02:40]} Kg7 {[%emt 0:02:05]} 43. Qc2 {[%emt 0:00:46]} 1/2-1/2

[Event "23rd Pirc Memorial Juniors 202"]
[Site "Maribor"]
[Date "2020.08.15"]
[Round "8.4"]
[White "Centrih, Aleks"]
[Black "Javornik, Nik"]
[Result "1/2-1/2"]
[ECO "B27"]
[WhiteElo "1746"]
[BlackElo "1786"]
[Annotator "NA"]
[PlyCount "60"]
[EventDate "2020.08.12"]
[EventType "tourn"]
[EventCountry "SLO"]
[SourceTitle "playchess.com"]
[Source "ChessBase"]
[SourceQuality "1"]
[TimeControl "3600+30"]

1. e4 {[%emt 0:00:00]} c5 {[%emt 0:00:00]} 2. Nf3 {[%emt 0:00:00]} g6 {[%emt 0:00:00]} 3. d4 {[%emt 0:00:00]} cxd4 {[%emt 0:00:00]} 4. Qxd4 {[%emt 0:00:00]} Nf6 {[%emt 0:00:00]} 5. e5 {[%emt 0:00:00]} Nc6 {[%emt 0:00:00]} 6. Qa4 {[%emt 0:00:00]} Nd5 {[%emt 0:00:00]} 7. Qe4 {[%emt 0:00:03]} Nb6 {[%emt 0:00:00]} 8. Nc3 {[%emt 0:00:36]} Bg7 {[%emt 0:00:04]} 9. Bf4 {[%emt 0:04:46]} d5 {[%emt 0:00:06]} 10. exd6 {[%emt 0:02:29]} Bf5 {[%emt 0:00:05]} 11. Qe2 {[%emt 0:01:01]} O-O {[%emt 0:00:52]} 12. O-O-O {[%emt 0:00:34]} exd6 {[%emt 0:00:04]} 13. Rxd6 {[%emt 0:00:53]} Qc8 {[%emt 0:00:03]} 14. Qd2 {[%emt 0:00:09]} Re8 {[%emt 0:00:36]} 15. Bh6 {[%emt 0:00:56]} Bh8 {[%emt 0:00:02]} 16. Be3 {[%emt 0:08:28]} Na5 {[%emt 0:11:31]} 17. Bxb6 {[%emt 0:08:03]} axb6 {[%emt 0:00:01]} 18. Nd4 {[%emt 0:05:11]} Be5 {[%emt 0:10:55]} 19. Ndb5 {[%emt 0:09:49]} Nc4 {[%emt 0:02:40]} 20. Bxc4 {[%emt 0:03:01]} Qxc4 {[%emt 0:00:02]} 21. Kb1 {[%emt 0:02:25]} Rxa2 {[%emt 0:06:41]} 22. Nxa2 {[%emt 0:02:23]} Qxb5 {[%emt 0:00:34]} 23. Nc3 {[%emt 0:00:20]} Qb3 {[%emt 0:06:00]} 24. Rd8 {[%emt 0:01:52]} Qxc2+ {[%emt 0:01:34]} 25. Qxc2 {[%emt 0:01:00]} Bxc2+ {[%emt 0:00:02]} 26. Kxc2 {[%emt 0:00:11]} Rxd8 {[%emt 0:00:06]} 27. h3 {[%emt 0:19:20]} Kg7 {[%emt 0:00:32]} 28. f3 {[%emt 0:00:00]} Bf4 {[%emt 0:00:35]} 29. Rd1 {[%emt 0:00:00]} Rxd1 {[%emt 0:00:02]} 30. Nxd1 {[%emt 0:00:00]} f5 {[%emt 0:00:14]} 1/2-1/2

[Event "23rd Pirc Memorial Juniors 202"]
[Site "Maribor"]
[Date "2020.08.16"]
[Round "9.1"]
[White "Lavrencic, Matic"]
[Black "Drevensek, Gasper"]
[Result "1-0"]
[ECO "B51"]
[WhiteElo "1902"]
[BlackElo "1446"]
[Annotator "ChessBase"]
[PlyCount "129"]
[EventDate "2020.08.12"]
[EventType "tourn"]
[EventCountry "SLO"]
[SourceTitle "playchess.com"]
[Source "ChessBase"]
[SourceQuality "1"]
[TimeControl "3600+30"]

1. e4 {[%emt 0:00:00]} c5 {[%emt 0:00:00]} 2. Nf3 {[%emt 0:00:00]} d6 {[%emt 0:00:00]} 3. Bb5+ {[%emt 0:00:00]} Nd7 {[%emt 0:00:17]} 4. O-O {[%emt 0:00:00]} a6 {[%emt 0:00:56]} 5. Bd3 {[%emt 0:00:00]} Ngf6 {[%emt 0:00:44]} 6. c3 {[%emt 0:00:06]} e6 {[%emt 0:00:11]} 7. Bc2 {[%emt 0:00:08]} b5 {[%emt 0:00:05]} 8. d4 {[%emt 0:00:04]} Bb7 {[%emt 0:00:07]} 9. Nbd2 {[%emt 0:00:28]} Be7 {[%emt 0:01:13]} 10. a4 {[%emt 0:00:34]} O-O {[%emt 0:01:08]} 11. Qe2 {[%emt 0:00:13]} Qb6 {[%emt 0:04:08]} 12. Bd3 {[%emt 0:00:54]} c4 {[%emt 0:01:21]} 13. Bc2 {[%emt 0:00:16]} Rac8 {[%emt 0:05:19]} 14. Re1 {[%emt 0:00:59]} Rfe8 {[%emt 0:03:35]} 15. Nf1 {[%emt 0:00:31]} e5 {[%emt 0:02:01]} 16. d5 {[%emt 0:00:24]} Nc5 {[%emt 0:00:51]} 17. Ng3 {[%emt 0:02:27]} Bf8 {[%emt 0:02:51]} 18. Bg5 {[%emt 0:01:08]} Nfd7 {[%emt 0:01:53]} 19. h3 {[%emt 0:05:22]} bxa4 {[%emt 0:02:25]} 20. Bxa4 {[%emt 0:00:12]} Nxa4 {[%emt 0:00:15]} 21. Rxa4 {[%emt 0:00:07]} f6 {[%emt 0:02:38]} 22. Be3 {[%emt 0:01:03]} Qc7 {[%emt 0:00:51]} 23. Nd2 {[%emt 0:00:49]} Nc5 {[%emt 0:05:27]} 24. Rxc4 {[%emt 0:00:49]} a5 {[%emt 0:01:19]} 25. b4 {[%emt 0:01:10]} Ba6 {[%emt 0:01:08]} 26. bxc5 {[%emt 0:02:55]} Bxc4 {[%emt 0:00:19]} 27. Qxc4 {[%emt 0:00:09]} dxc5 {[%emt 0:00:21]} 28. d6+ {[%emt 0:00:09]} Qf7 {[%emt 0:01:35]} 29. Qxf7+ {[%emt 0:00:06]} Kxf7 {[%emt 0:00:05]} 30. d7 {[%emt 0:00:01]} Rcd8 {[%emt 0:00:30]} 31. dxe8=Q+ {[%emt 0:00:11]} Kxe8 {[%emt 0:00:10]} 32. Nc4 {[%emt 0:00:06]} Rd3 {[%emt 0:00:23]} 33. Nxa5 {[%emt 0:00:11]} Rxc3 {[%emt 0:00:05]} 34. Rc1 {[%emt 0:00:12]} Ra3 {[%emt 0:01:29]} 35. Nb7 {[%emt 0:00:08]} Ra7 {[%emt 0:02:28]} 36. Nxc5 {[%emt 0:00:10]} Kf7 {[%emt 0:02:24]} 37. Ne6 {[%emt 0:00:20]} Ra2 {[%emt 0:00:19]} 38. Nxf8 {[%emt 0:00:06]} Kxf8 {[%emt 0:00:08]} 39. Rc8+ {[%emt 0:00:10]} Kf7 {[%emt 0:00:09]} 40. Rc7+ {[%emt 0:00:04]} Kg6 {[%emt 0:00:11]} 41. h4 {[%emt 0:00:18]} h5 {[%emt 0:00:30]} 42. Nf5 {[%emt 0:00:14]} Ra1+ {[%emt 0:00:44]} 43. Kh2 {[%emt 0:00:08]} Kh7 {[%emt 0:01:34]} 44. Rxg7+ {[%emt 0:00:10]} Kh8 {[%emt 0:00:09]} 45. Re7 {[%emt 0:00:11]} Kg8 {[%emt 0:00:20]} 46. Nh6+ {[%emt 0:01:08]} Kh8 {[%emt 0:00:32]} 47. Nf5 {[%emt 0:00:15]} Kg8 {[%emt 0:00:12]} 48. Rg7+ {[%emt 0:00:05]} Kh8 {[%emt 0:00:17]} 49. Rg6 {[%emt 0:00:01]} Kh7 {[%emt 0:00:31]} 50. Rxf6 {[%emt 0:00:07]} Kg8 {[%emt 0:00:11]} 51. Rh6 {[%emt 0:00:04]} Kf7 {[%emt 0:00:26]} 52. Rxh5 {[%emt 0:00:06]} Kg6 {[%emt 0:00:08]} 53. Rg5+ {[%emt 0:00:06]} Kh7 {[%emt 0:00:10]} 54. h5 {[%emt 0:00:17]} Kh8 {[%emt 0:00:10]} 55. Kg3 {[%emt 0:00:07]} Ra3 {[%emt 0:00:17]} 56. Ne7 {[%emt 0:00:31]} Kh7 {[%emt 0:00:15]} 57. Kg4 {[%emt 0:00:13]} Ra4 {[%emt 0:00:16]} 58. Rxe5 {[%emt 0:00:10]} Kg7 {[%emt 0:00:10]} 59. Nf5+ {[%emt 0:00:15]} Kf6 {[%emt 0:00:31]} 60. f4 {[%emt 0:00:09]} Kf7 {[%emt 0:00:12]} 61. h6 {[%emt 0:00:07]} Kg6 {[%emt 0:00:32]} 62. Re6+ {[%emt 0:00:07]} Kf7 {[%emt 0:00:32]} 63. Re7+ {[%emt 0:00:01]} Kg8 {[%emt 0:00:42]} 64. Kg5 {[%emt 0:00:23]} Ra6 {[%emt 0:00:09]} 65. h7+ {[%emt 0:00:11]} 1-0

[Event "23rd Pirc Memorial Juniors 202"]
[Site "Maribor"]
[Date "2020.08.16"]
[Round "9.2"]
[White "Javornik, Nik"]
[Black "Javornik, Lina"]
[Result "1-0"]
[ECO "C78"]
[WhiteElo "1786"]
[BlackElo "1330"]
[Annotator "NA RC"]
[PlyCount "30"]
[EventDate "2020.08.12"]
[EventType "tourn"]
[EventCountry "SLO"]
[SourceTitle "playchess.com"]
[Source "ChessBase"]
[SourceQuality "1"]
[TimeControl "3600+30"]

1. e4 {[%emt 0:00:00]} e5 {[%emt 0:00:00]} 2. Nf3 {[%emt 0:00:00]} Nc6 {[%emt 0:00:00]} 3. Bb5 {[%emt 0:00:00]} a6 {[%emt 0:00:00]} 4. Ba4 {[%emt 0:00:00]} Bc5 {[%emt 0:00:00]} 5. O-O {[%emt 0:00:00]} Nf6 {[%emt 0:00:58]} 6. Nxe5 {[%emt 0:00:05]} Nxe5 {[%emt 0:00:14]} 7. d4 {[%emt 0:00:05]} Bd6 {[%emt 0:00:13]} 8. f4 {[%emt 0:00:11]} Neg4 {[%emt 0:00:35]} 9. e5 {[%emt 0:00:14]} Bxe5 {[%emt 0:00:32]} 10. fxe5 {[%emt 0:00:15]} c6 {[%emt 0:00:22]} 11. exf6 {[%emt 0:00:13]} Nxf6 {[%emt 0:00:09]} 12. Bg5 {[%emt 0:00:28]} Qb6 {[%emt 0:00:31]} 13. Bxf6 {[%emt 0:00:24]} gxf6 {[%emt 0:00:11]} 14. Bb3 {[%emt 0:00:32]} Rg8 {[%emt 0:00:20]} 15. Rxf6 {[%emt 0:00:29]} d5 {[%emt 0:00:34]} 1-0

[Event "23rd Pirc Memorial Juniors 202"]
[Site "Maribor"]
[Date "2020.08.16"]
[Round "9.3"]
[White "Kozlovic, Jernej"]
[Black "Centrih, Aleks"]
[Result "1-0"]
[ECO "C78"]
[WhiteElo "1445"]
[BlackElo "1746"]
[Annotator "NA"]
[PlyCount "81"]
[EventDate "2020.08.12"]
[EventType "tourn"]
[EventCountry "SLO"]
[SourceTitle "playchess.com"]
[Source "ChessBase"]
[SourceQuality "1"]
[TimeControl "3600+30"]

1. e4 {[%emt 0:00:00]} e5 {[%emt 0:00:00]} 2. Nf3 {[%emt 0:00:00]} Nc6 {[%emt 0:00:00]} 3. Bb5 {[%emt 0:00:00]} a6 {[%emt 0:00:00]} 4. Ba4 {[%emt 0:00:00]} Nf6 {[%emt 0:00:00]} 5. O-O {[%emt 0:00:00]} b5 {[%emt 0:00:00]} 6. Bb3 {[%emt 0:00:00]} Bb7 {[%emt 0:00:02]} 7. Re1 {[%emt 0:01:48]} Bc5 {[%emt 0:00:15]} 8. c3 {[%emt 0:00:02]} d6 {[%emt 0:00:10]} 9. d4 {[%emt 0:00:11]} Bb6 {[%emt 0:00:04]} 10. Bc2 {[%emt 0:01:08]} O-O {[%emt 0:01:00]} 11. Bg5 {[%emt 0:08:05]} h6 {[%emt 0:00:07]} 12. Bh4 {[%emt 0:00:38]} g5 {[%emt 0:00:55]} 13. dxe5 {[%emt 0:07:05]} Nxe5 {[%emt 0:00:41]} 14. Bg3 {[%emt 0:07:33]} Qe7 {[%emt 0:06:03]} 15. Nxe5 {[%emt 0:02:05]} dxe5 {[%emt 0:00:07]} 16. Nd2 {[%emt 0:04:38]} Rad8 {[%emt 0:02:21]} 17. Qe2 {[%emt 0:00:19]} Bc8 {[%emt 0:01:01]} 18. Nf3 {[%emt 0:05:53]} Nd7 {[%emt 0:10:30]} 19. Rad1 {[%emt 0:02:05]} f6 {[%emt 0:02:18]} 20. h3 {[%emt 0:03:39]} Nc5 {[%emt 0:01:18]} 21. Nh2 {[%emt 0:01:07]} Ne6 {[%emt 0:03:29]} 22. Bb3 {[%emt 0:02:27]} Kh7 {[%emt 0:01:35]} 23. Bxe6 {[%emt 0:01:58]} Bxe6 {[%emt 0:00:36]} 24. Ng4 {[%emt 0:00:44]} Bxa2 {[%emt 0:07:57]} 25. Ne3 {[%emt 0:02:06]} Be6 {[%emt 0:09:57]} 26. Ra1 {[%emt 0:01:51]} Ra8 {[%emt 0:09:23]} 27. Red1 {[%emt 0:00:59]} c6 {[%emt 0:00:07]} 28. Qf3 {[%emt 0:05:15]} a5 {[%emt 0:04:30]} 29. Nf5 {[%emt 0:00:34]} Qf7 {[%emt 0:02:16]} 30. Rd6 {[%emt 0:01:10]} Rac8 {[%emt 0:01:40]} 31. Rad1 {[%emt 0:05:48]} Rfd8 {[%emt 0:00:57]} 32. Qg4 {[%emt 0:02:12]} h5 {[%emt 0:03:15]} 33. Qf3 {[%emt 0:00:21]} Kg6 {[%emt 0:00:16]} 34. Bh2 {[%emt 0:01:47]} Bb3 {[%emt 0:02:13]} 35. R1d3 {[%emt 0:02:13]} Qf8 {[%emt 0:01:28]} 36. Bxe5 {[%emt 0:00:38]} Rxd6 {[%emt 0:00:25]} 37. Rxd6 {[%emt 0:00:00]} Bd8 {[%emt 0:00:22]} 38. Ng3 {[%emt 0:00:00]} Bf7 {[%emt 0:01:11]} 39. Bxf6 {[%emt 0:00:55]} Qxd6 {[%emt 0:00:14]} 40. Qf5+ {[%emt 0:00:03]} Kh6 {[%emt 0:00:29]} 41. Qxg5+ {[%emt 0:00:02]} 1-0